[Event "DVM U14 2024"]
[Site "Heidelberg"]
[Date "2024.12.29"]
[Round "5"]
[White "Arne, Jonas"]
[Black "Bohatyrova, Mariia"]
[Result "1-0"]
[ECO "A26"]
[WhiteElo "1823"]
[BlackElo "1682"]
[Annotator "NA RC"]
[PlyCount "139"]
[EventDate "2024.12.23"]
[EventType "team-tourn"]
[EventRounds "7"]
[EventCountry "GER"]
[SourceTitle "playchess.com"]
[Source "ChessBase"]
[SourceQuality "1"]
[TimeControl "40/5400+30:1800+30"]

1. c4 {[%emt 0:00:04]} e5 {[%emt 0:00:06]} 2. d3 {[%emt 0:00:04]} Nc6 {[%emt 0:00:51]} 3. a3 {[%emt 0:00:34]} a5 {[%emt 0:00:14]} 4. g3 {[%emt 0:00:36]} g6 {[%emt 0:00:15]} 5. Bg2 {[%emt 0:00:27]} Bg7 {[%emt 0:00:11]} 6. Nc3 {[%emt 0:00:22]} Nf6 {[%emt 0:01:26]} 7. Nf3 {[%emt 0:00:25]} d6 {[%emt 0:00:20]} 8. O-O {[%emt 0:00:20]} O-O {[%emt 0:00:09]} 9. Rb1 {[%emt 0:00:21]} h6 {[%emt 0:02:23]} 10. Bd2 {[%emt 0:01:43]} Be6 {[%emt 0:00:00]} 11. b4 {[%emt 0:00:41]} axb4 {[%emt 0:00:00]} 12. axb4 {[%emt 0:00:04]} Qd7 {[%emt 0:00:00]} 13. Re1 {[%emt 0:02:13]} Bh3 {[%emt 0:04:03]} 14. Bh1 {[%emt 0:00:08]} Nh5 {[%emt 0:18:19]} 15. b5 {[%emt 0:07:04]} Ne7 {[%emt 0:00:38]} 16. Nh4 {[%emt 0:05:54]} Rab8 {[%emt 0:01:35]} 17. Nd5 {[%emt 0:04:21]} Nxd5 {[%emt 0:06:50]} 18. Bxd5 {[%emt 0:00:10]} Kh7 {[%emt 0:00:34]} 19. Be3 {[%emt 0:26:10]} b6 {[%emt 0:28:30]} 20. f3 {[%emt 0:13:33]} f5 {[%emt 0:02:37]} 21. Ng2 {[%emt 0:02:14]} f4 {[%emt 0:09:14]} 22. Bf2 {[%emt 0:04:45]} fxg3 {[%emt 0:01:30]} 23. hxg3 {[%emt 0:00:58]} Qe7 {[%emt 0:11:14]} 24. Kh2 {[%emt 0:04:51]} Bc8 {[%emt 0:01:14]} 25. Rh1 {[%emt 0:05:17]} Nf6 {[%emt 0:02:47]} 26. Ne3 {[%emt 0:02:51]} Ng4+ {[%emt 0:03:24]} 27. Nxg4 {[%emt 0:00:32]} Bxg4 {[%emt 0:00:07]} 28. Kg2 {[%emt 0:00:24]} Bd7 {[%emt 0:00:46]} 29. Be3 {[%emt 0:01:39]} Be6 {[%emt 0:02:41]} 30. Bc6 {[%emt 0:00:16]} Rh8 {[%emt 0:00:25]} 31. Qd2 {[%emt 0:00:31]} h5 {[%emt 0:00:54]} 32. Be4 {[%emt 0:04:27]} Qf7 {[%emt 0:01:16]} 33. Rxh5+ {[%emt 0:00:17]} Kg8 {[%emt 0:00:07]} 34. Rxh8+ {[%emt 0:00:25]} Bxh8 {[%emt 0:00:05]} 35. Rh1 {[%emt 0:01:42]} Bg7 {[%emt 0:00:58]} 36. Bh6 {[%emt 0:01:42]} Bxh6 {[%emt 0:01:42]} 37. Qxh6 {[%emt 0:01:08]} Qg7 {[%emt 0:00:18]} 38. Qxg6 {[%emt 0:00:15]} Qxg6 {[%emt 0:00:12]} 39. Bxg6 {[%emt 0:00:07]} Kg7 {[%emt 0:00:04]} 40. Be4 {[%emt 0:00:29]} Bf7 {[%emt 0:01:53]} 41. Bc6 {[%emt 0:35:07]} Be8 {[%emt 0:04:27]} 42. Bd5 {[%emt 0:00:00]} Rc8 {[%emt 0:03:00]} 43. f4 {[%emt 0:00:00]} exf4 {[%emt 0:01:20]} 44. gxf4 {[%emt 0:00:00]} Bg6 {[%emt 0:11:38]} 45. e4 {[%emt 0:00:00]} Kf6 {[%emt 0:03:26]} 46. Kf3 {[%emt 0:00:00]} Bf7 {[%emt 0:02:52]} 47. Bxf7 {[%emt 0:00:00]} Kxf7 {[%emt 0:00:03]} 48. Rh7+ {[%emt 0:00:00]} Kg6 {[%emt 0:00:48]} 49. Rd7 {[%emt 0:00:00]} Kf6 {[%emt 0:00:27]} 50. d4 {[%emt 0:00:00]} Ke6 {[%emt 0:00:48]} 51. Rh7 {[%emt 0:00:00]} Kf6 {[%emt 0:00:35]} 52. e5+ {[%emt 0:00:00]} dxe5 {[%emt 0:00:20]} 53. dxe5+ {[%emt 0:00:00]} Kf5 {[%emt 0:00:42]} 54. Rf7+ {[%emt 0:00:00]} Ke6 {[%emt 0:00:26]} 55. Rf6+ {[%emt 0:00:00]} Ke7 {[%emt 0:00:26]} 56. Ke4 {[%emt 0:00:00]} Rd8 {[%emt 0:00:34]} 57. Rc6 {[%emt 0:00:00]} Kd7 {[%emt 0:01:48]} 58. e6+ {[%emt 0:00:00]} Kc8 {[%emt 0:00:46]} 59. f5 {[%emt 0:00:00]} Rd1 {[%emt 0:00:42]} 60. Ke5 {[%emt 0:00:00]} Rd8 {[%emt 0:02:32]} 61. e7 {[%emt 0:00:00]} Re8 {[%emt 0:00:13]} 62. Ke6 {[%emt 0:00:00]} Rh8 {[%emt 0:02:16]} 63. f6 {[%emt 0:00:00]} Kb7 {[%emt 0:01:20]} 64. f7 {[%emt 0:00:00]} Rh6+ {[%emt 0:00:31]} 65. Kf5 {[%emt 0:00:00]} Rh5+ {[%emt 0:00:33]} 66. Kg4 {[%emt 0:00:00]} Rh8 {[%emt 0:00:31]} 67. f8=Q {[%emt 0:00:00]} Rxf8 {[%emt 0:00:16]} 68. exf8=Q {[%emt 0:00:00]} Ka7 {[%emt 0:00:12]} 69. Qd8 {[%emt 0:00:00]} Kb7 {[%emt 0:00:10]} 70. Rxc7# {[%emt 0:00:00]} 1-0

[Event "DVM U14 2024"]
[Site "Heidelberg"]
[Date "2024.12.29"]
[Round "5"]
[White "Pflug, Anton"]
[Black "Neumeier, Valentina"]
[Result "1-0"]
[ECO "C54"]
[WhiteElo "1812"]
[BlackElo "1877"]
[Annotator "NA RC"]
[PlyCount "131"]
[EventDate "2024.12.23"]
[EventType "team-tourn"]
[EventRounds "7"]
[EventCountry "GER"]
[SourceTitle "playchess.com"]
[Source "ChessBase"]
[SourceQuality "1"]
[TimeControl "40/5400+30:1800+30"]

1. e4 {[%emt 0:00:04]} e5 {[%emt 0:00:04]} 2. Nf3 {[%emt 0:00:09]} Nc6 {[%emt 0:00:04]} 3. Bc4 {[%emt 0:00:07]} Bc5 {[%emt 0:00:05]} 4. c3 {[%emt 0:00:05]} Nf6 {[%emt 0:00:05]} 5. d4 {[%emt 0:00:03]} exd4 {[%emt 0:00:04]} 6. e5 {[%emt 0:00:04]} d5 {[%emt 0:05:10]} 7. Bb5 {[%emt 0:00:10]} Ne4 {[%emt 0:01:47]} 8. cxd4 {[%emt 0:00:09]} Bb4+ {[%emt 0:02:55]} 9. Bd2 {[%emt 0:09:35]} Bxd2+ {[%emt 0:01:41]} 10. Nbxd2 {[%emt 0:00:07]} Nxd2 {[%emt 0:03:52]} 11. Qxd2 {[%emt 0:00:36]} Bd7 {[%emt 0:00:57]} 12. Be2 {[%emt 0:07:33]} Qe7 {[%emt 0:03:27]} 13. a3 {[%emt 0:06:31]} a5 {[%emt 0:06:06]} 14. O-O {[%emt 0:03:35]} O-O {[%emt 0:02:00]} 15. Rfe1 {[%emt 0:05:34]} a4 {[%emt 0:05:26]} 16. Rac1 {[%emt 0:06:30]} Bf5 {[%emt 0:06:06]} 17. Bd3 {[%emt 0:05:15]} Bxd3 {[%emt 0:14:00]} 18. Qxd3 {[%emt 0:00:11]} Na5 {[%emt 0:02:09]} 19. Nd2 {[%emt 0:07:42]} Qd7 {[%emt 0:05:03]} 20. f4 {[%emt 0:10:22]} Ra6 {[%emt 0:04:44]} 21. f5 {[%emt 0:11:41]} Rb6 {[%emt 0:06:56]} 22. Rc2 {[%emt 0:15:41]} Nb3 {[%emt 0:05:48]} 23. Nf1 {[%emt 0:01:33]} Rh6 {[%emt 0:07:21]} 24. Rf2 {[%emt 0:01:43]} c5 {[%emt 0:02:44]} 25. dxc5 {[%emt 0:02:00]} Nxc5 {[%emt 0:00:44]} 26. Qd4 {[%emt 0:00:44]} Nb3 {[%emt 0:01:31]} 27. Qf4 {[%emt 0:00:57]} Nc5 {[%emt 0:04:15]} 28. Rf3 {[%emt 0:02:50]} Ne4 {[%emt 0:02:43]} 29. Ng3 {[%emt 0:00:29]} Nxg3 {[%emt 0:00:57]} 30. Rxg3 {[%emt 0:00:08]} Qc6 {[%emt 0:03:13]} 31. e6 {[%emt 0:01:28]} Qc5+ {[%emt 0:00:46]} 32. Kh1 {[%emt 0:00:06]} Kh8 {[%emt 0:01:17]} 33. e7 {[%emt 0:02:38]} Re8 {[%emt 0:00:14]} 34. Qe5 {[%emt 0:00:36]} Rf6 {[%emt 0:00:50]} 35. Rc3 {[%emt 0:00:27]} Qb5 {[%emt 0:01:35]} 36. g4 {[%emt 0:00:33]} Rb6 {[%emt 0:01:08]} 37. Rc8 {[%emt 0:00:31]} h6 {[%emt 0:00:34]} 38. Rxe8+ {[%emt 0:00:08]} Qxe8 {[%emt 0:00:09]} 39. Qxd5 {[%emt 0:00:40]} Kh7 {[%emt 0:00:46]} 40. Kg1 {[%emt 0:00:33]} Rxb2 {[%emt 0:00:30]} 41. Qd3 {[%emt 0:01:57]} f6 {[%emt 0:02:27]} 42. Re2 {[%emt 0:01:02]} Rxe2 {[%emt 0:04:26]} 43. Qxe2 {[%emt 0:00:06]} b5 {[%emt 0:00:46]} 44. Qe4 {[%emt 0:04:21]} Kh8 {[%emt 0:02:39]} 45. Qe6 {[%emt 0:02:10]} Kh7 {[%emt 0:02:45]} 46. Qd6 {[%emt 0:02:47]} Qc8 {[%emt 0:01:56]} 47. Qd8 {[%emt 0:09:08]} Qc1+ {[%emt 0:00:16]} 48. Kg2 {[%emt 0:00:05]} Qc2+ {[%emt 0:01:04]} 49. Kh3 {[%emt 0:00:29]} Qc3+ {[%emt 0:01:00]} 50. Kg2 {[%emt 0:03:45]} Qc2+ {[%emt 0:00:52]} 51. Kf3 {[%emt 0:01:49]} Qc3+ {[%emt 0:01:17]} 52. Ke4 {[%emt 0:01:33]} Qc4+ {[%emt 0:00:33]} 53. Qd4 {[%emt 0:01:17]} Qe2+ {[%emt 0:00:28]} 54. Qe3 {[%emt 0:00:52]} Qg2+ {[%emt 0:06:37]} 55. Kd4 {[%emt 0:00:45]} Qxg4+ {[%emt 0:01:07]} 56. Kd5 {[%emt 0:01:24]} Qg2+ {[%emt 0:02:16]} 57. Kd6 {[%emt 0:00:36]} Qxh2+ {[%emt 0:01:18]} 58. Kd7 {[%emt 0:00:22]} Qc2 {[%emt 0:03:39]} 59. e8=Q {[%emt 0:00:19]} Qxf5+ {[%emt 0:00:28]} 60. Q8e6 {[%emt 0:00:11]} Qxe6+ {[%emt 0:01:11]} 61. Kxe6 {[%emt 0:00:25]} h5 {[%emt 0:00:21]} 62. Kf7 {[%emt 0:00:13]} b4 {[%emt 0:00:45]} 63. axb4 {[%emt 0:00:06]} a3 {[%emt 0:00:19]} 64. Qe4+ {[%emt 0:00:05]} Kh8 {[%emt 0:00:10]} 65. Qg6 {[%emt 0:00:05]} a2 {[%emt 0:00:06]} 66. Qxh5# {[%emt 0:00:06]} 1-0

[Event "DVM U14 2024"]
[Site "Heidelberg"]
[Date "2024.12.29"]
[Round "5"]
[White "Ollhoff, Hannes"]
[Black "Mandalka, Justus"]
[Result "0-1"]
[ECO "D02"]
[WhiteElo "1801"]
[BlackElo "2059"]
[Annotator "NA RC"]
[PlyCount "111"]
[EventDate "2024.12.23"]
[EventType "team-tourn"]
[EventRounds "7"]
[EventCountry "GER"]
[SourceTitle "playchess.com"]
[Source "ChessBase"]
[SourceQuality "1"]
[TimeControl "40/5400+30:1800+30"]

1. d4 {[%emt 0:00:08]} d5 {[%emt 0:00:04]} 2. Nf3 {[%emt 0:00:07]} Nf6 {[%emt 0:00:08]} 3. c3 {[%emt 0:00:12]} Bf5 {[%emt 0:00:59]} 4. Qb3 {[%emt 0:00:28]} Qc8 {[%emt 0:01:21]} 5. Bf4 {[%emt 0:01:04]} e6 {[%emt 0:01:01]} 6. e3 {[%emt 0:00:45]} Bd6 {[%emt 0:00:13]} 7. Bxd6 {[%emt 0:04:21]} cxd6 {[%emt 0:00:07]} 8. Nbd2 {[%emt 0:01:32]} O-O {[%emt 0:03:49]} 9. Be2 {[%emt 0:02:58]} Nc6 {[%emt 0:00:00]} 10. O-O {[%emt 0:06:40]} e5 {[%emt 0:03:29]} 11. dxe5 {[%emt 0:05:45]} dxe5 {[%emt 0:00:09]} 12. Bb5 {[%emt 0:01:49]} Qc7 {[%emt 0:07:12]} 13. Rac1 {[%emt 0:05:07]} Rfd8 {[%emt 0:01:51]} 14. Rfe1 {[%emt 0:12:37]} Rab8 {[%emt 0:04:07]} 15. Qa4 {[%emt 0:14:36]} a6 {[%emt 0:07:22]} 16. Be2 {[%emt 0:05:00]} h6 {[%emt 0:02:26]} 17. h3 {[%emt 0:05:18]} Ra8 {[%emt 0:00:30]} 18. Qh4 {[%emt 0:03:28]} b5 {[%emt 0:06:27]} 19. g4 {[%emt 0:04:22]} Bg6 {[%emt 0:01:08]} 20. Qg3 {[%emt 0:02:03]} Re8 {[%emt 0:09:36]} 21. b3 {[%emt 0:05:51]} Qa5 {[%emt 0:05:57]} 22. c4 {[%emt 0:02:10]} e4 {[%emt 0:03:51]} 23. b4 {[%emt 0:06:32]} Nxb4 {[%emt 0:02:33]} 24. Nb3 {[%emt 0:01:07]} Qxa2 {[%emt 0:06:51]} 25. Nfd4 {[%emt 0:00:51]} dxc4 {[%emt 0:00:04]} 26. Ra1 {[%emt 0:01:45]} cxb3 {[%emt 0:00:04]} 27. Rxa2 {[%emt 0:00:28]} bxa2 {[%emt 0:00:06]} 28. Qd6 {[%emt 0:01:45]} Nfd5 {[%emt 0:00:50]} 29. Ra1 {[%emt 0:03:57]} Red8 {[%emt 0:00:34]} 30. Qe5 {[%emt 0:00:45]} Nc3 {[%emt 0:03:43]} 31. Qc5 {[%emt 0:01:46]} Nbd5 {[%emt 0:04:34]} 32. Qa3 {[%emt 0:00:36]} b4 {[%emt 0:00:19]} 33. Qb3 {[%emt 0:00:17]} a5 {[%emt 0:01:05]} 34. Bb5 {[%emt 0:00:47]} a4 {[%emt 0:00:29]} 35. Qb2 {[%emt 0:00:08]} b3 {[%emt 0:00:47]} 36. Bc6 {[%emt 0:00:54]} Ra6 {[%emt 0:05:57]} 37. Bxd5 {[%emt 0:00:15]} Nxd5 {[%emt 0:00:06]} 38. Nb5 {[%emt 0:00:37]} Rb8 {[%emt 0:02:42]} 39. Na3 {[%emt 0:00:29]} Nb4 {[%emt 0:00:34]} 40. Kf1 {[%emt 0:00:35]} Nd3 {[%emt 0:00:23]} 41. Qc3 {[%emt 0:03:56]} b2 {[%emt 0:02:42]} 42. Rxa2 {[%emt 0:00:19]} b1=Q+ {[%emt 0:00:04]} 43. Nxb1 {[%emt 0:00:11]} Rxb1+ {[%emt 0:00:02]} 44. Kg2 {[%emt 0:01:01]} Ne1+ {[%emt 0:02:01]} 45. Kg3 {[%emt 0:00:31]} Rf6 {[%emt 0:02:08]} 46. Rb2 {[%emt 0:04:01]} Rxb2 {[%emt 0:00:39]} 47. Qxb2 {[%emt 0:00:14]} Rf3+ {[%emt 0:00:41]} 48. Kh2 {[%emt 0:01:13]} Nd3 {[%emt 0:00:10]} 49. Qa3 {[%emt 0:01:45]} Nxf2 {[%emt 0:00:26]} 50. Qxa4 {[%emt 0:00:49]} Rxe3 {[%emt 0:00:26]} 51. Kg2 {[%emt 0:01:37]} Nxh3 {[%emt 0:00:25]} 52. Qa7 {[%emt 0:01:33]} Nf4+ {[%emt 0:00:23]} 53. Kf2 {[%emt 0:00:12]} Rf3+ {[%emt 0:00:04]} 54. Ke1 {[%emt 0:00:23]} Kh7 {[%emt 0:00:21]} 55. Qb6 {[%emt 0:00:54]} Rg3 {[%emt 0:00:30]} 56. Qf2 {[%emt 0:02:28]} 0-1

[Event "DVM U14 2024"]
[Site "Heidelberg"]
[Date "2024.12.29"]
[Round "5"]
[White "Botschek, Marius"]
[Black "Dersewski, Jonas"]
[Result "1/2-1/2"]
[ECO "C01"]
[WhiteElo "1788"]
[BlackElo "1738"]
[Annotator "NA RC"]
[PlyCount "101"]
[EventDate "2024.12.23"]
[EventType "team-tourn"]
[EventRounds "7"]
[EventCountry "GER"]
[SourceTitle "playchess.com"]
[Source "ChessBase"]
[SourceQuality "1"]
[TimeControl "40/5400+30:1800+30"]

1. e4 {[%emt 0:00:03]} e6 {[%emt 0:00:02]} 2. d4 {[%emt 0:00:07]} d5 {[%emt 0:00:05]} 3. Bd3 {[%emt 0:00:05]} Nf6 {[%emt 0:00:57]} 4. e5 {[%emt 0:00:04]} Nfd7 {[%emt 0:00:05]} 5. Ne2 {[%emt 0:00:08]} c5 {[%emt 0:00:13]} 6. c3 {[%emt 0:00:06]} Nc6 {[%emt 0:00:10]} 7. a3 {[%emt 0:00:06]} cxd4 {[%emt 0:01:15]} 8. cxd4 {[%emt 0:00:16]} Qb6 {[%emt 0:03:10]} 9. b4 {[%emt 0:00:49]} Be7 {[%emt 0:04:22]} 10. Be3 {[%emt 0:00:54]} O-O {[%emt 0:02:55]} 11. O-O {[%emt 0:00:08]} f6 {[%emt 0:04:41]} 12. Nf4 {[%emt 0:10:01]} fxe5 {[%emt 0:28:07]} 13. Nxe6 {[%emt 0:36:58]} exd4 {[%emt 0:08:11]} 14. Nxd4 {[%emt 0:05:03]} Nxd4 {[%emt 0:03:25]} 15. Bxd4 {[%emt 0:00:38]} Qh6 {[%emt 0:05:42]} 16. Be3 {[%emt 0:04:41]} Bg5 {[%emt 0:05:52]} 17. Bxg5 {[%emt 0:05:57]} Qxg5 {[%emt 0:00:11]} 18. Qd2 {[%emt 0:00:25]} Qxd2 {[%emt 0:01:25]} 19. Nxd2 {[%emt 0:00:02]} Ne5 {[%emt 0:00:56]} 20. Be2 {[%emt 0:01:45]} Bf5 {[%emt 0:03:40]} 21. Nf3 {[%emt 0:01:14]} Nxf3+ {[%emt 0:01:22]} 22. Bxf3 {[%emt 0:00:03]} Be4 {[%emt 0:00:09]} 23. Bxe4 {[%emt 0:01:29]} dxe4 {[%emt 0:00:01]} 24. Rfe1 {[%emt 0:00:12]} Rfe8 {[%emt 0:00:14]} 25. Re3 {[%emt 0:00:07]} Re7 {[%emt 0:00:22]} 26. Rae1 {[%emt 0:00:10]} Rd8 {[%emt 0:06:03]} 27. h3 {[%emt 0:01:55]} Kf7 {[%emt 0:00:42]} 28. Rxe4 {[%emt 0:01:24]} Rxe4 {[%emt 0:00:03]} 29. Rxe4 {[%emt 0:00:01]} Rd1+ {[%emt 0:00:21]} 30. Kh2 {[%emt 0:00:05]} Rd2 {[%emt 0:00:42]} 31. Kg3 {[%emt 0:00:08]} Kf6 {[%emt 0:00:39]} 32. Re3 {[%emt 0:02:15]} Rd4 {[%emt 0:01:32]} 33. Kf3 {[%emt 0:02:21]} h5 {[%emt 0:01:11]} 34. g4 {[%emt 0:14:20]} hxg4+ {[%emt 0:03:27]} 35. hxg4 {[%emt 0:00:01]} b6 {[%emt 0:03:06]} 36. Kg3 {[%emt 0:01:32]} g5 {[%emt 0:00:52]} 37. Rf3+ {[%emt 0:03:30]} Kg6 {[%emt 0:01:21]} 38. Rc3 {[%emt 0:01:18]} Rd6 {[%emt 0:00:53]} 39. f3 {[%emt 0:01:27]} Kf6 {[%emt 0:02:13]} 40. Rc7 {[%emt 0:04:46]} a6 {[%emt 0:01:10]} 41. Rc3 {[%emt 0:32:52]} b5 {[%emt 0:30:52]} 42. Kf2 {[%emt 0:00:00]} Re6 {[%emt 0:00:00]} 43. Rd3 {[%emt 0:00:00]} Rc6 {[%emt 0:00:00]} 44. Ke2 {[%emt 0:00:00]} Re6+ {[%emt 0:00:00]} 45. Kd2 {[%emt 0:00:00]} Rc6 {[%emt 0:00:00]} 46. Ke3 {[%emt 0:00:00]} Re6+ {[%emt 0:00:00]} 47. Kd4 {[%emt 0:00:00]} Rd6+ {[%emt 0:00:00]} 48. Kc3 {[%emt 0:00:00]} Rc6+ {[%emt 0:00:00]} 49. Kb3 {[%emt 0:00:00]} Ke5 {[%emt 0:00:00]} 50. a4 {[%emt 0:00:00]} Rb6 {[%emt 0:00:00]} 51. axb5 {[%emt 0:00:00]} 1/2-1/2

[Event "DVM U14 2024"]
[Site "Heidelberg"]
[Date "2024.12.29"]
[Round "5"]
[White "Ramming, Moritz"]
[Black "Shevchenko, Igor"]
[Result "0-1"]
[ECO "B13"]
[WhiteElo "1769"]
[BlackElo "1788"]
[Annotator "NA RC"]
[PlyCount "96"]
[EventDate "2024.12.23"]
[EventType "team-tourn"]
[EventRounds "7"]
[EventCountry "GER"]
[SourceTitle "playchess.com"]
[Source "ChessBase"]
[SourceQuality "1"]
[TimeControl "40/5400+30:1800+30"]

1. e4 {[%emt 0:00:03]} c6 {[%emt 0:00:31]} 2. d4 {[%emt 0:00:06]} d5 {[%emt 0:00:32]} 3. exd5 {[%emt 0:00:07]} cxd5 {[%emt 0:00:27]} 4. Bd3 {[%emt 0:00:08]} Nc6 {[%emt 0:05:43]} 5. c3 {[%emt 0:00:13]} Qc7 {[%emt 0:00:30]} 6. Na3 {[%emt 0:00:08]} a6 {[%emt 0:10:59]} 7. Nc2 {[%emt 0:00:12]} g6 {[%emt 0:23:18]} 8. h3 {[%emt 0:03:04]} Nf6 {[%emt 0:05:16]} 9. Nf3 {[%emt 0:00:37]} Bf5 {[%emt 0:04:23]} 10. Bg5 {[%emt 0:02:34]} Bxd3 {[%emt 0:05:41]} 11. Qxd3 {[%emt 0:00:12]} Ne4 {[%emt 0:00:31]} 12. Bc1 {[%emt 0:04:24]} e6 {[%emt 0:14:06]} 13. Ng5 {[%emt 0:01:34]} Nf6 {[%emt 0:03:40]} 14. Qf3 {[%emt 0:03:16]} Bg7 {[%emt 0:00:46]} 15. h4 {[%emt 0:00:25]} h6 {[%emt 0:01:05]} 16. Nh3 {[%emt 0:00:36]} e5 {[%emt 0:00:55]} 17. dxe5 {[%emt 0:05:07]} Nxe5 {[%emt 0:00:37]} 18. Qe2 {[%emt 0:01:06]} O-O-O {[%emt 0:02:56]} 19. Bf4 {[%emt 0:06:28]} Rhe8 {[%emt 0:00:46]} 20. O-O-O {[%emt 0:00:41]} Ne4 {[%emt 0:01:34]} 21. Nd4 {[%emt 0:10:13]} Qa5 {[%emt 0:03:16]} 22. Kb1 {[%emt 0:02:00]} f5 {[%emt 0:02:30]} 23. f3 {[%emt 0:01:29]} Nc5 {[%emt 0:04:41]} 24. Nb3 {[%emt 0:03:36]} Nxb3 {[%emt 0:00:08]} 25. axb3 {[%emt 0:00:10]} Nc6 {[%emt 0:01:21]} 26. Qd2 {[%emt 0:05:56]} Qb5 {[%emt 0:01:06]} 27. Bxh6 {[%emt 0:01:39]} Re2 {[%emt 0:00:35]} 28. Qc1 {[%emt 0:01:22]} Bxh6 {[%emt 0:04:04]} 29. Qxh6 {[%emt 0:00:59]} Qxb3 {[%emt 0:00:14]} 30. Rd2 {[%emt 0:00:49]} Rxd2 {[%emt 0:02:42]} 31. Qxd2 {[%emt 0:00:06]} d4 {[%emt 0:00:02]} 32. cxd4 {[%emt 0:02:51]} Rxd4 {[%emt 0:00:56]} 33. Qc2 {[%emt 0:00:41]} Qxc2+ {[%emt 0:00:17]} 34. Kxc2 {[%emt 0:00:06]} Rxh4 {[%emt 0:00:06]} 35. Re1 {[%emt 0:02:14]} Nd4+ {[%emt 0:00:11]} 36. Kc3 {[%emt 0:01:56]} Nxf3 {[%emt 0:00:28]} 37. Re8+ {[%emt 0:00:20]} Kd7 {[%emt 0:00:36]} 38. Rg8 {[%emt 0:00:15]} Ne5 {[%emt 0:00:28]} 39. Rg7+ {[%emt 0:01:04]} Kc6 {[%emt 0:00:18]} 40. Re7 {[%emt 0:00:26]} Rc4+ {[%emt 0:01:08]} 41. Kd2 {[%emt 0:32:30]} Rc5 {[%emt 0:30:10]} 42. b3 {[%emt 0:01:10]} a5 {[%emt 0:00:00]} 43. Ng5 {[%emt 0:00:00]} b5 {[%emt 0:00:00]} 44. Ra7 {[%emt 0:00:00]} Kb6 {[%emt 0:00:00]} 45. Re7 {[%emt 0:00:00]} Rd5+ {[%emt 0:00:00]} 46. Kc2 {[%emt 0:00:00]} Kc5 {[%emt 0:00:00]} 47. Re6 {[%emt 0:00:00]} Kb4 {[%emt 0:00:00]} 48. Nh3 {[%emt 0:00:00]} Rc5+ {[%emt 0:00:00]} 0-1

[Event "DVM U14 2024"]
[Site "Heidelberg"]
[Date "2024.12.29"]
[Round "5"]
[White "Kommessin, Felix"]
[Black "Kalinski, Jan"]
[Result "1-0"]
[ECO "B21"]
[WhiteElo "1757"]
[BlackElo "1700"]
[Annotator "NA"]
[PlyCount "53"]
[EventDate "2024.12.23"]
[EventType "team-tourn"]
[EventRounds "7"]
[EventCountry "GER"]
[SourceTitle "playchess.com"]
[Source "ChessBase"]
[SourceQuality "1"]
[TimeControl "40/5400+30:1800+30"]

1. e4 {[%emt 0:00:03]} c5 {[%emt 0:00:08]} 2. d4 {[%emt 0:00:06]} cxd4 {[%emt 0:00:06]} 3. c3 {[%emt 0:00:05]} dxc3 {[%emt 0:00:03]} 4. Nxc3 {[%emt 0:00:06]} Nc6 {[%emt 0:00:08]} 5. Nf3 {[%emt 0:00:06]} e6 {[%emt 0:00:04]} 6. Bc4 {[%emt 0:00:07]} Bb4 {[%emt 0:00:06]} 7. O-O {[%emt 0:00:17]} Nge7 {[%emt 0:01:07]} 8. Bg5 {[%emt 0:00:14]} h6 {[%emt 0:00:34]} 9. Be3 {[%emt 0:00:11]} O-O {[%emt 0:00:08]} 10. Qe2 {[%emt 0:00:36]} Bxc3 11. bxc3 {[%emt 0:00:08]} Qa5 {[%emt 0:00:29]} 12. Rac1 {[%emt 0:01:32]} d5 {[%emt 0:00:12]} 13. Bd3 {[%emt 0:03:50]} dxe4 {[%emt 0:28:07]} 14. Bxe4 {[%emt 0:00:06]} Rd8 {[%emt 0:00:32]} 15. Kh1 {[%emt 0:14:17]} e5 {[%emt 0:02:42]} 16. Nh4 {[%emt 0:03:46]} Be6 {[%emt 0:03:16]} 17. Qh5 {[%emt 0:15:03]} Nd5 {[%emt 0:17:32]} 18. Bxh6 {[%emt 0:12:29]} gxh6 {[%emt 0:04:59]} 19. Qxh6 {[%emt 0:00:17]} f6 {[%emt 0:12:34]} 20. c4 {[%emt 0:12:12]} Nde7 {[%emt 0:04:42]} 21. Qxf6 {[%emt 0:02:35]} Bf7 {[%emt 0:00:18]} 22. f4 {[%emt 0:11:38]} exf4 {[%emt 0:01:00]} 23. Rxf4 {[%emt 0:00:39]} Rf8 {[%emt 0:06:18]} 24. Rg4+ {[%emt 0:03:29]} Bg6 {[%emt 0:00:39]} 25. Rxg6+ {[%emt 0:00:21]} Nxg6 {[%emt 0:00:06]} 26. Qxg6+ {[%emt 0:00:06]} Kh8 {[%emt 0:00:03]} 27. Qh7# {[%emt 0:00:39]} 1-0

[Event "DVM U14 2024"]
[Site "Heidelberg"]
[Date "2024.12.29"]
[Round "5"]
[White "Han, Erdem"]
[Black "Geschke, David"]
[Result "1/2-1/2"]
[ECO "D37"]
[WhiteElo "1751"]
[BlackElo "1831"]
[Annotator "NA"]
[PlyCount "55"]
[EventDate "2024.12.23"]
[EventType "team-tourn"]
[EventRounds "7"]
[EventCountry "GER"]
[SourceTitle "playchess.com"]
[Source "ChessBase"]
[SourceQuality "1"]
[TimeControl "40/5400+30:1800+30"]

1. d4 {[%emt 0:00:01]} d5 {[%emt 0:00:05]} 2. c4 {[%emt 0:00:12]} e6 {[%emt 0:00:04]} 3. Nc3 {[%emt 0:00:04]} Nf6 {[%emt 0:00:06]} 4. Nf3 {[%emt 0:00:04]} Nbd7 {[%emt 0:00:40]} 5. Bf4 {[%emt 0:01:57]} c6 {[%emt 0:00:48]} 6. e3 {[%emt 0:01:28]} Be7 {[%emt 0:02:50]} 7. h3 {[%emt 0:01:29]} O-O {[%emt 0:00:24]} 8. Qc2 {[%emt 0:01:24]} Re8 {[%emt 0:03:32]} 9. Bd3 {[%emt 0:05:09]} dxc4 {[%emt 0:05:18]} 10. Bxc4 {[%emt 0:00:12]} Nb6 {[%emt 0:00:13]} 11. Bd3 {[%emt 0:02:44]} Nbd5 {[%emt 0:00:51]} 12. Be5 {[%emt 0:03:04]} Nb4 {[%emt 0:01:58]} 13. Qb1 {[%emt 0:01:58]} Nxd3+ {[%emt 0:01:14]} 14. Qxd3 {[%emt 0:00:08]} Nd5 {[%emt 0:03:19]} 15. O-O {[%emt 0:01:19]} b6 {[%emt 0:06:29]} 16. Rac1 {[%emt 0:09:28]} Bb7 {[%emt 0:05:23]} 17. Rfd1 {[%emt 0:13:48]} f6 {[%emt 0:12:24]} 18. Bh2 {[%emt 0:01:43]} Bd6 {[%emt 0:01:52]} 19. Bxd6 {[%emt 0:06:48]} Qxd6 {[%emt 0:00:02]} 20. Nxd5 {[%emt 0:06:57]} exd5 {[%emt 0:15:56]} 21. a3 {[%emt 0:07:16]} Rac8 {[%emt 0:04:52]} 22. Qf5 {[%emt 0:05:36]} Rc7 {[%emt 0:03:21]} 23. b4 {[%emt 0:04:06]} Bc8 {[%emt 0:05:52]} 24. Qd3 {[%emt 0:06:14]} Be6 {[%emt 0:04:21]} 25. Rc3 {[%emt 0:03:19]} Qd7 {[%emt 0:04:46]} 26. Rdc1 {[%emt 0:04:11]} Bf5 {[%emt 0:08:15]} 27. Qe2 {[%emt 0:01:48]} Qd6 {[%emt 0:02:11]} 28. Qa6 {[%emt 0:00:51]} 1/2-1/2